fUST/lending_fUST_20240806
["ID","MTS","AMOUNT","RATE_DAILY","PERIOD"]
[334287337,1722895844192,-151.0,0.0004074,120]
[334287338,1722895844202,-4295.83222661,0.000408,30]
[334287339,1722895844212,-502.01,0.00040821,34]
[334287340,1722895844222,-2000.0,0.00040821,120]
[334287341,1722895844231,-10997.0,0.00040843,3]
[334287342,1722895844241,-8368.65384771,0.00040843,5]
[334287343,1722895844251,-210.07467099,0.00040852,31]
[334287344,1722895844260,-500.0,0.00040852,31]
[334287345,1722895844270,-500.0,0.00040852,31]
[334287346,1722895844282,-500.0,0.00040852,31]
[334287347,1722895844292,-481.21307682,0.00040852,31]
[334287348,1722895844301,-500.0,0.00040852,31]
[334287349,1722895844311,-7364.46057986,0.00040853,2]
[334287350,1722895844321,-2000.0,0.00040853,2]
[334287351,1722895844330,-2457.08228365,0.00040853,5]
[334287352,1722895844394,-486.29742466,0.00040853,5]
[334287354,1722895847397,-95.43362114,0.00035836,120]
[334287355,1722895847409,-322.61542586,0.00035836,120]
[334287356,1722895847419,-44429.50381597,0.00040853,5]
[334287357,1722895847431,-200.0,0.00040873,5]
[334287358,1722895847440,-2000.0,0.00040895,2]
[334287359,1722895847450,-16737.3076954,0.00040943,5]
[334287360,1722895847459,-14811.11879582,0.00040953,2]
[334287390,1722896740032,-163.79464,0.00014247,2]
[334287391,1722896740056,-1368.86585383,0.0002028,2]
[334287392,1722896825265,-165.303022,0.00014247,2]
[334287393,1722896825289,-1162.86940617,0.00019547,2]
[334287394,1722896825311,-6329.35509294,0.00019999,2]
[334287395,1722896829190,-461.695022,0.00019999,2]
[334287396,1722896850117,-982.85416582,0.00019999,2]
[334287397,1722896850149,-239.0,0.00020279,2]
[334287398,1722896850170,-2239.18299031,0.0002028,2]
[334287399,1722896952111,-189.219699,0.00019599,2]
[334287400,1722896953111,-816.16582707,0.00019999,2]
[334287401,1722896953134,-319.5982601,0.00019999,2]
[334287402,1722896953159,-269.69558364,0.00019999,2]
[334287403,1722896953180,-2237.532454,0.00020051,2]
[334287404,1722896953200,-4656.16935191,0.0002028,2]
[334287405,1722896953223,-1225.91366278,0.0002028,2]
[334287406,1722896953244,-1382.92970052,0.0002028,2]
[334287407,1722896953265,-180.46429061,0.0002028,2]
[334287408,1722896953286,-912.4763458,0.0002028,2]
[334287409,1722896953307,-419.4879444,0.0002028,2]
[334287410,1722896953329,-154.82195475,0.0002028,2]
[334287411,1722896953350,-160.200956,0.00020596,2]
[334287412,1722896953371,-193.81001865,0.00020721,2]
[334287413,1722896953393,-22764.26424532,0.00020798,2]
[334287414,1722896966114,-2135.73575468,0.00020798,2]
[334287415,1722896966139,-1208.08066269,0.00020886,2]
[334287416,1722896966163,-951.65187642,0.00020999,2]
[334287417,1722896966187,-155.25435631,0.00021048,2]
[334287418,1722896966214,-615.73960865,0.00021048,2]
[334287419,1722896966239,-250.0,0.00021243,2]
[334287420,1722896966263,-250.0,0.00021301,2]
[334287421,1722896966288,-250.0,0.00021359,2]
[334287422,1722896966312,-250.0,0.00021418,2]
[334287423,1722896966337,-250.0,0.00021476,2]
[334287424,1722896966362,-250.0,0.00021534,2]
[334287425,1722896966384,-341.21408671,0.00021542,2]
[334287426,1722896966409,-250.0,0.00021593,2]
[334287427,1722896966434,-1610.68802731,0.00021632,2]
[334287428,1722896966458,-154.80721478,0.00021632,2]
[334287429,1722896966484,-1456.65490575,0.00021642,2]
[334287430,1722896966507,-194.58009581,0.00021642,2]
[334287431,1722896966530,-1981.30457622,0.00021642,2]
[334287432,1722896966553,-250.0,0.00021651,2]
[334287433,1722896966576,-250.0,0.00021709,2]
[334287434,1722896966599,-250.0,0.00021767,2]
[334287435,1722896966623,-250.0,0.00021826,2]
[334287436,1722896966646,-250.0,0.00021884,2]
[334287437,1722896966669,-845.99412703,0.00021916,2]
[334287438,1722896967243,-316.87527914,0.00021916,2]
[334287439,1722896967264,-156.95333335,0.00021916,2]
[334287440,1722896967286,-250.0,0.00021942,2]
[334287441,1722896967307,-507.999999,0.00022,2]
[334287442,1722896967328,-250.0,0.00022,2]
[334287443,1722896967350,-250.0,0.00022059,2]
[334287444,1722896967372,-250.0,0.00022117,2]
[334287445,1722896967394,-250.0,0.00022175,2]
[334287446,1722896967416,-250.0,0.00022234,2]
[334287447,1722896967437,-250.0,0.00022292,2]
[334287448,1722896967462,-250.0,0.0002235,2]
[334287449,1722896967482,-165.303022,0.00022429,2]
[334287450,1722896967503,-2124.51614001,0.00024581,2]
[334287451,1722896967523,-200.0,0.00024658,15]
[334287452,1722896967549,-1208.08066266,0.00024933,2]
[334287453,1722896967569,-2553.81617029,0.00025,2]
[334287454,1722896967733,81.88208187,0.00021916,2]
[334287455,1722896970101,-101.02752306,0.00021916,2]
[334287456,1722896974889,155.25435631,0.00021011,2]
[334287457,1722896991084,86.82810897,0.00024581,2]
[334287479,1722897032644,-51.29944689,0.00024581,2]
[334287531,1722897039161,-507.72640289,0.00024581,2]
[334287532,1722897039479,-247.92388329,0.00024581,2]
[334287533,1722897039489,-881.47696693,0.00026408,2]
[334287534,1722897039503,-402.3465429,0.00026569,2]
[334287535,1722897039518,-153.29,0.000266,31]
[334287536,1722897039528,-153.29,0.000266,31]
[334287537,1722897039538,-153.29,0.000266,31]
[334287538,1722897039547,-153.29,0.000266,31]
[334287539,1722897039557,-160.54991199,0.0002661,2]
[334287540,1722897039566,-160.54991199,0.0002661,2]
[334287541,1722897039575,-1525.69299257,0.0002739,2]
[334287542,1722897039585,-150.15892679,0.0003,7]
[334287543,1722897039594,-153.29,0.000305,31]
[334287544,1722897039604,-153.29,0.000305,31]
[334287545,1722897039613,-153.29,0.000305,31]
[334287546,1722897039623,-153.29,0.000305,31]
[334287547,1722897039633,-165.303022,0.00030612,2]
[334287548,1722897039642,-313.536785,0.00031507,120]
[334287549,1722897039652,-153.29,0.000344,31]
[334287550,1722897039661,-153.29,0.000344,31]
[334287551,1722897039670,-153.29,0.000344,31]
[334287552,1722897039679,-153.29,0.000344,31]
[334287553,1722897039688,-2155.97874496,0.00035,120]
[334287554,1722897039698,-313.536785,0.00036758,120]
[334287555,1722897039707,-153.29,0.000383,31]
[334287556,1722897039716,-153.29,0.000383,31]
[334287557,1722897039728,-153.29,0.000383,31]
[334287558,1722897039738,-153.29,0.000383,31]
[334287559,1722897039748,-165.303022,0.00038795,2]
[334287560,1722897039761,-3868.0,0.00039,120]
[334287561,1722897039774,-410.92295579,0.00039,2]
[334287562,1722897039783,-160.0,0.0003992,3]
[334287563,1722897039792,-506.0,0.00039969,2]
[334287564,1722897039802,-3868.0,0.0004,120]
[334287565,1722897039813,-3868.0,0.0004,120]
[334287566,1722897039824,-200.0,0.0004,2]
[334287567,1722897039834,-3177.34458678,0.00040469,2]
[334287568,1722897039843,-5340.64370129,0.00040528,2]
[334287569,1722897039852,-500.0,0.00040547,30]
[334287570,1722897039861,-668.81534705,0.00040607,2]
[334287571,1722897039886,-2508.52923973,0.00040607,2]
[334287572,1722897039897,-500.0,0.00040684,32]
[334287573,1722897039907,-10770.37467091,0.000408,7]
[334287670,1722897948167,-165.303022,0.00014247,2]
[334287671,1722897948191,-326.29296298,0.00020999,2]
[334287672,1722897948215,-148.64191853,0.00021011,2]
[334287674,1722898034158,-163.45442298,0.00020721,2]
[334287675,1722898034183,-146.22361118,0.00021242,10]
[334287676,1722898040144,-357.60042248,0.00021242,10]
[334287677,1722898052110,-737.04430642,0.00021242,10]
[334287678,1722898053256,-759.13165992,0.00021242,10]
[334287679,1722898053443,-308.71856903,0.00021499,2]
[334287680,1722898053467,-280.37012538,0.00021589,2]
[334287681,1722898053488,-155.06546205,0.00021906,2]
[334287682,1722898053509,-235.98044981,0.00021906,2]
[334287683,1722898053530,-156.45678917,0.00021906,2]
[334287686,1722898151103,-157.33891375,0.00021242,2]
[334287687,1722898151125,-509.51747512,0.00021642,2]
[334287688,1722898151147,-453.44665482,0.00021805,2]
[334287689,1722898151172,-154.74467129,0.00021916,2]
[334287690,1722898151198,-154.55950541,0.00025,2]
[334287691,1722898151235,-500.0,0.00025,30]
[334287692,1722898151259,-462.08937673,0.00025,30]
[334287693,1722898153094,-37.91062327,0.00025,30]
[334287694,1722898153117,-174.65299701,0.00025,30]
[334287695,1722898159080,-245.1536463,0.00025,30]
[334287704,1722898166278,-80.19335669,0.00025,30]
[334287705,1722898166302,-179.68229762,0.00025,30]
[334287706,1722898169101,-273.22449609,0.00025,30]
[334287750,1722898238857,-15.9128383,0.00024875,6]
[334287829,1722898240899,-588.45553631,0.00024875,6]
[334287830,1722898240909,-47.09320629,0.00025,30]
[334287831,1722898240918,-422.0,0.00025,30]
[334287832,1722898240927,-189.52144051,0.00025,2]
[334287833,1722898240936,-190.32262584,0.00025124,6]
[334287881,1722898246658,-414.04574877,0.00025124,6]
[334287882,1722898246668,-128.74509934,0.00025373,8]
[334287886,1722898246863,-175.169239,0.00025373,8]
[334287887,1722898246877,-165.303022,0.00025405,2]
[334287888,1722898246887,-214.69062998,0.00026181,2]
[334287889,1722898316931,154.86274198,0.00021916,2]
[334287890,1722898326317,205.60210806,0.00014247,2]
[334287891,1722898326352,100.77881184,0.00014247,2]
[334287936,1722899234134,-165.303022,0.00014247,2]
[334287937,1722899234157,-588.60692424,0.00017019,2]
[334287938,1722899234179,-150.47575234,0.00017269,2]
[334287939,1722899250157,-154.71377951,0.0002028,2]
[334287940,1722899250182,-47.26259293,0.00021011,2]
[334287941,1722899350119,-192.54960295,0.0002,2]
[334287942,1722899350140,-269.02878737,0.00021011,2]
[334287943,1722899350160,-35012.4181319,0.00021602,2]
[334287944,1722899350183,-72.20431442,0.00024539,2]
[334287945,1722899350210,-87.99664158,0.00024539,2]
[334287946,1722899350233,-461.70419097,0.00025,30]
[334287947,1722899350259,24900.0,0.00023073,2]
[334287948,1722899361120,-250.0,0.00025153,2]
[334287949,1722899361144,-81.36074825,0.00025222,2]
[334287950,1722899372131,-168.63925175,0.00025222,2]
[334287951,1722899372153,-250.0,0.00025291,2]
[334287952,1722899372175,-250.0,0.0002536,2]
[334287953,1722899372197,-69.67348255,0.00025429,2]
[334287954,1722899380125,253.709168,0.00021916,2]
[334287966,1722899417721,2205.28774848,0.00025,30]
[334287994,1722899433345,-180.32651745,0.00025429,2]
[334287996,1722899433360,-169.67348255,0.00025467,2]
[334287998,1722899433372,-1245.35694666,0.00025467,2]
[334287999,1722899433384,-6365.4353209,0.00025467,2]
[334288001,1722899433396,-250.0,0.00025498,2]
[334288003,1722899433406,-250.0,0.00025567,2]
[334288005,1722899433417,-250.0,0.00025636,2]
[334288006,1722899433427,-250.0,0.00025705,2]
[334288008,1722899433437,-250.0,0.00025774,2]
[334288010,1722899433446,-250.0,0.00025843,2]
[334288011,1722899433457,-250.0,0.00025912,2]
[334288013,1722899433467,-250.0,0.00025981,2]
[334288015,1722899433478,-250.0,0.0002605,2]
[334288017,1722899433488,-881.47696693,0.00026056,2]
[334288018,1722899433498,-250.0,0.00026119,2]
[334288020,1722899433508,-160.54991199,0.00026158,2]
[334288022,1722899433518,-189.52144051,0.00026181,2]
[334288023,1722899433528,-250.0,0.00026188,2]
[334288025,1722899433539,-250.0,0.00026257,2]
[334288027,1722899433549,-402.3465429,0.00026304,2]
[334288028,1722899433558,-250.0,0.00026326,2]
[334288030,1722899433567,-250.0,0.00026395,2]
[334288032,1722899433578,-250.0,0.00026464,2]
[334288033,1722899433589,-621.95123781,0.00027492,2]
[334288035,1722899433601,-165.303022,0.00027884,2]
[334288037,1722899433612,-611.6185,0.00027948,30]
[334288039,1722899433627,-209.024523,0.00031507,120]
[334288040,1722899433637,-170.589378,0.00035083,2]
[334288042,1722899433647,-294.2886399,0.00036255,2]
[334288044,1722899433658,-153.0,0.00036939,2]
[334288046,1722899433669,-153.0,0.00036939,2]
[334288047,1722899433678,-153.0,0.00036939,2]
[334288049,1722899433688,-153.0,0.00036939,2]
[334288051,1722899433698,-153.0,0.00036939,2]
[334288052,1722899433709,-2212.89451606,0.00039,120]
[334288087,1722899438830,-472.13235622,0.00039,120]
[334288100,1722899439984,-1109.081745,0.00039,120]
[334288134,1722899442868,-73.89138272,0.00039,120]
[334288135,1722899442878,-209.024523,0.00039384,120]
[334288136,1722899442888,-510.71,0.00039703,2]
[334288137,1722899442898,-150.0,0.0003992,2]
[334288138,1722899442908,-3868.0,0.0004,120]
[334288139,1722899442917,-3868.0,0.0004,120]
[334288140,1722899442928,-200.0,0.0004,2]
[334288141,1722899442937,-1655.43670581,0.0004,2]
[334288241,1722899447176,-6102.45321347,0.0004,2]
[334288244,1722899447188,-979.98,0.0004,2]
[334288247,1722899545115,156.95333335,0.00021916,2]
[334288251,1722900435623,-165.303022,0.00014247,2]
[334288252,1722900435645,-250.35702584,0.0002028,2]
[334288253,1722900435667,-154.89498593,0.00020721,2]
[334288254,1722900435690,-188.24924053,0.00021599,2]
[334288255,1722900435712,-256.006286,0.00021642,2]
[334288256,1722900435734,-300.0,0.00021915,2]
[334288257,1722900435764,-197.97499817,0.00021916,2]
[334288258,1722900435785,-722.57670981,0.00021916,2]
[334288259,1722900438131,-657.66262943,0.00021906,2]
[334288260,1722900444305,-325.19153639,0.00021906,2]
[334288261,1722900444332,-1516.6062805,0.00021916,2]
[334288262,1722900444354,-659.15280191,0.00022813,2]
[334288263,1722900444378,-839.42139157,0.00023862,2]
[334288264,1722900445100,-6835.56138017,0.00023862,2]
[334288265,1722900449104,-184.13531023,0.00023862,2]
[334288266,1722900454118,-230.01840911,0.00023862,2]
[334288269,1722900550111,-5103.12611412,0.00023862,2]
[334288270,1722900554785,131.52655369,0.00021916,2]
[334288271,1722900554807,56.72268684,0.00021916,2]
[334288272,1722900556896,180.51812913,0.00021916,2]
[334288273,1722900558119,-136.35715001,0.00021916,2]
[334288274,1722900558141,-82.62741362,0.00023953,2]
[334288275,1722900559102,-539.33022648,0.00023953,2]
[334288276,1722900559133,-186.13514191,0.00024503,2]
[334288277,1722900561213,156.95333335,0.00021916,2]
[334288278,1722900562279,77.40110105,0.00021916,2]
[334288279,1722900562302,110.84813948,0.00021916,2]
[334288280,1722900573091,-8.06576609,0.00024503,2]
[334288281,1722900573119,-149.66981027,0.00024929,2]
[334288391,1722900638082,-241.58470593,0.00024804,2]
[334288393,1722900638095,-44.53109773,0.00024929,2]
[334288394,1722900638107,-319.92838575,0.00025,30]
[334288395,1722900638117,-2553.81617029,0.00025,2]
[334288396,1722900638127,-99.01173786,0.00025151,2]
[334288397,1722900638159,-25.55760101,0.00025151,2]
[334288481,1722900646282,-495.52854313,0.00025151,2]
[334288482,1722900646293,-194.200908,0.00025354,2]
[334288483,1722900646303,-200.0,0.00025693,15]
[334288484,1722900646314,-194.200908,0.0002578,2]
[334288485,1722900646324,-1000.5,0.00026,31]
[334288486,1722900646334,-1127.5,0.00026,31]
[334288487,1722900646344,-168.870157,0.00026466,2]
[334288488,1722900646354,-402.3465429,0.00026569,2]
[334288489,1722900646364,-402.3465429,0.00026569,2]
[334288490,1722900646374,-300.0,0.00026574,2]
[334288491,1722900646384,-881.47696693,0.00026583,2]
[334288492,1722900646393,-21081.7754,0.00027949,30]
[334288493,1722900646403,-2124.51614001,0.00028923,2]
[334288494,1722900646413,-250.15678194,0.00028923,2]
[334288495,1722900646424,-226.0,0.00029231,2]
[334288496,1722900646434,-170.589378,0.00029897,2]
[334288497,1722900646443,-195.958778,0.00030302,7]
[334288498,1722900646453,-195.958778,0.00030302,7]
[334288499,1722900646463,-7303.3103694,0.00030302,21]
[334288500,1722900646473,-28072.93797963,0.00030303,4]
[334288501,1722900646482,-304.4581465,0.00031507,120]
[334288502,1722900646493,-165.303022,0.00031781,2]
[334288503,1722900646503,-276.2265043,0.0003863,2]
[334288504,1722900646520,-153.0,0.0003863,2]
[334288505,1722900646529,-3868.0,0.00039,120]
[334288506,1722900646538,-194.83,0.00039502,3]
[334288507,1722900646547,-151.0,0.00039502,14]
[334288508,1722900646557,-152.0,0.00039522,15]
[334288509,1722900646566,-389.65,0.00039569,3]
[334288510,1722900646575,-195.958778,0.00039579,14]
[334288511,1722900646586,-195.958778,0.00039579,14]
[334288512,1722900646595,-153.0,0.00039589,2]
[334288513,1722900646604,-151.0,0.00039705,15]
[334288514,1722900646614,-152.0,0.00039723,15]
[334288515,1722900646624,-153.0470608,0.00039863,2]
[334288516,1722900646634,-1573.32345778,0.0003989,2]
[334288517,1722900646644,-1889.21893655,0.000399,2]
[334288518,1722900646653,-152.0,0.00039925,15]
[334288519,1722900646664,-584.5,0.0003996,3]
[334288520,1722900646674,-16598.88,0.0003996,3]
[334288521,1722900646684,-170.0,0.0003997,120]
[334288522,1722900646694,-150.5,0.0003997,120]
[334288523,1722900646890,-371.387696,0.0003997,14]
[334288524,1722900646902,-371.387696,0.0003997,14]
[334288525,1722900646912,-1823.333766,0.0003997,14]
[334288526,1722900646921,-1404.26552131,0.0003997,14]
[334288532,1722900647268,-419.06824469,0.0003997,14]
[334288533,1722900647280,-2883.979243,0.0003997,14]
[334288534,1722900647289,-1823.333766,0.0003997,14]
[334288535,1722900647298,-1823.333766,0.0003997,14]
[334288536,1722900647307,-2883.979243,0.0003997,14]
[334288537,1722900647316,-151.0,0.0003997,14]
[334288538,1722900647325,-6404.80861817,0.0003997,5]
[334288539,1722900647414,-601.77124366,0.0003997,5]
[334288546,1722900701392,134.03085315,0.00021916,2]
[334288562,1722901361048,4000.0,0.0001401,2]
[334288564,1722901465292,189.93381828,0.0001401,2]
[334288567,1722901536136,-173.732219,0.00014247,2]
[334288568,1722901536158,-26.34318174,0.00016982,2]
[334288569,1722901625090,-296.82937311,0.00016347,2]
[334288570,1722901625113,-163.45442298,0.00016532,2]
[334288571,1722901625135,-155.06546205,0.00016532,2]
[334288572,1722901625157,-235.98044981,0.0002,2]
[334288573,1722901625181,-223.45363636,0.0002028,2]
[334288574,1722901625204,-254.02694364,0.00020584,2]
[334288575,1722901625226,-816.30394873,0.00020999,2]
[334288576,1722901625248,-34.37173206,0.00020999,2]
[334288577,1722901630192,-120.40384336,0.00020999,2]
[334288578,1722901630215,-154.63660398,0.00021048,2]
[334288579,1722901630237,-82.55997514,0.00022,2]
[334288581,1722901647107,-248.53002486,0.00022,2]
[334288582,1722901647130,-69.8616447,0.00025,30]
[334288583,1722901650109,-430.1383553,0.00025,30]
[334288584,1722901650131,-500.0,0.00025,30]
[334288585,1722901650153,-517.0,0.00025,30]
[334288586,1722901650174,-189.219699,0.00025431,2]
[334288587,1722901650199,-166.666666,0.00025515,2]
[334288588,1722901650223,-166.666666,0.00025636,2]
[334288589,1722901650247,-166.666666,0.00025757,2]
[334288590,1722901650271,-166.666666,0.00025878,2]
[334288591,1722901650292,-160.200956,0.00025962,2]
[334288592,1722901650315,-166.666666,0.00025999,2]
[334288593,1722901650342,-166.666666,0.0002612,2]
[334288594,1722901650364,-166.666666,0.0002624,2]
[334288595,1722901650384,-402.3465429,0.00026354,2]
[334288596,1722901650411,-166.666666,0.00026361,2]
[334288597,1722901650433,-166.666666,0.00026482,2]
[334288598,1722901650460,-153.63,0.000266,31]
[334288599,1722901650484,-166.666666,0.00026603,2]
[334288600,1722901650505,-507.74826612,0.0002661,2]
[334288601,1722901650528,-166.666666,0.00026724,2]
[334288602,1722901650549,-200.0,0.00026753,15]
[334288603,1722901650572,-166.666666,0.00026845,2]
[334288604,1722901650597,-250.0,0.0003,120]
[334288605,1722901650620,-151.0,0.0003,120]
[334288606,1722901650642,-3428.86883119,0.00030116,2]
[334288629,1722901745157,-816.30394873,0.0002028,2]
[334288630,1722901745179,-125.74183417,0.00025,2]
[334288631,1722901754113,-28.81767124,0.00025,2]
[334288633,1722901776039,154.74467129,0.00021916,2]
[334288634,1722901777285,40.34458688,0.00021916,2]
[334288635,1722901777313,173.3179047,0.00021916,2]
[334288636,1722901777342,151.45321302,0.00021916,2]
[334288637,1722901777377,88.33095022,0.00021916,2]
[334288638,1722901780397,156.90145808,0.00021916,2]
[334288639,1722901780421,375.239402,0.00021916,2]
[334288642,1722901795403,66.85004645,0.00014247,2]
[334288643,1722901795426,106.88217255,0.00014247,2]
[334288688,1722901838010,-157.33891375,0.00021916,2]
[334288690,1722901838020,-154.86274198,0.00026564,2]
[334288692,1722901838030,-402.3465429,0.00026839,2]
[334288694,1722901838040,-170.589378,0.00027986,2]
[334288696,1722901838050,-1267.39298537,0.0003,2]
[334288698,1722901838062,-3413.23827696,0.0003,2]
[334288700,1722901838074,-323.03136307,0.0003,2]
[334288702,1722901838084,-254.63533274,0.00030116,4]
[334288704,1722901838093,-284.83809153,0.00030116,3]
[334288706,1722901838103,-397.80906787,0.00030116,2]
[334288709,1722901838115,-3317.59725317,0.00030116,2]
[334288711,1722901838126,-1343.7967144,0.00030116,2]
[334288713,1722901838137,-670.211277,0.00030302,7]
[334288715,1722901838147,-670.211277,0.00030302,7]
[334288717,1722901838156,-153.63,0.000305,31]
[334288719,1722901838166,-24890.0,0.00031216,2]
[334288721,1722901838176,-1291.41406492,0.00031407,2]
[334288723,1722901838186,-201.586967,0.00031507,120]
[334288725,1722901838196,-151.0,0.00031753,120]
[334288727,1722901838205,-151.0,0.00033507,120]
[334288729,1722901838215,-1291.4140649,0.00033951,2]
[334288731,1722901838224,-153.63,0.000344,31]
[334288733,1722901838234,-173.732219,0.00034703,2]
[334288735,1722901838245,-151.0,0.0003526,120]
[334288736,1722901838254,-1291.4140649,0.00036495,2]
[334288738,1722901838263,-151.0,0.00037014,120]
[334288739,1722901838272,-153.63,0.000383,31]
[334288741,1722901838282,-151.0,0.00038767,120]
[334288743,1722901838291,-3868.0,0.00039,120]
[334288745,1722901838300,-1291.4140649,0.00039039,2]
[334288746,1722901838309,-169.9525106,0.00039233,2]
[334288747,1722901838318,-287.914576,0.00039233,2]
[334288748,1722901838328,-294.2886399,0.00039233,2]
[334288749,1722901838337,-207.0130742,0.00039233,2]
[334288750,1722901838346,-240.9462531,0.00039233,2]
[334288751,1722901838356,-294.2886399,0.00039233,2]
[334288752,1722901838365,-306.0,0.00039233,2]
[334288753,1722901838378,-207.0130742,0.00039233,2]
[334288754,1722901838388,-294.2886399,0.00039233,2]
[334288755,1722901838397,-207.0130742,0.00039233,2]
[334288756,1722901838407,-294.2886399,0.00039233,2]
[334288757,1722901838418,-207.0130742,0.00039233,2]
[334288758,1722901838428,-294.2886399,0.00039233,2]
[334288759,1722901838437,-207.0130742,0.00039233,2]
[334288760,1722901838446,-207.0130742,0.00039233,2]
[334288761,1722901838457,-294.2886399,0.00039233,2]
[334288762,1722901838466,-207.0130742,0.00039233,2]
[334288763,1722901838476,-152.0,0.00039511,15]
[334288764,1722901838485,-670.211277,0.00039579,14]
[334288765,1722901838494,-670.211277,0.00039579,14]
[334288766,1722901838503,-152.0,0.00039713,15]
[334288767,1722901838513,-207.0130742,0.00039726,2]
[334288768,1722901838522,-413.9212468,0.00039726,2]
[334288769,1722901838531,-414.0261484,0.00039726,2]
[334288770,1722901838541,-207.0130742,0.00039726,2]
[334288771,1722901838551,-207.0130742,0.00039726,2]
[334288772,1722901838560,-207.0130742,0.00039726,2]
[334288773,1722901838570,-207.0130742,0.00039726,2]
[334288774,1722901838579,-2240.33203375,0.0003976,2]
[334288775,1722901838588,-14696.87,0.0003979,3]
[334288776,1722901838597,-194.82,0.0003979,3]
[334288777,1722901838607,-151.0,0.0003979,14]
[334288778,1722901838616,-500.0,0.00039799,31]
[334288779,1722901838625,-269.67895617,0.00039799,31]
[334288780,1722901838635,-500.0,0.00039799,31]
[334288781,1722901838643,-260.83923289,0.00039799,31]
[334288782,1722901838652,-500.0,0.00039799,31]
[334288783,1722901838663,-500.0,0.00039799,31]
[334288784,1722901838672,-500.0,0.00039799,31]
[334288785,1722901838681,-500.0,0.00039799,31]
[334288786,1722901838690,-500.0,0.00039799,31]
[334288787,1722901838700,-500.0,0.00039799,31]
[334288788,1722901838709,-500.0,0.00039799,31]
[334288789,1722901838718,-3651.6551847,0.000398,21]
[334288790,1722901838727,-88888.0,0.000398,5]
[334288791,1722901838736,-2240.33203372,0.00039845,2]
[334288792,1722901838745,-507.504705,0.0003985,14]
[334288793,1722901838754,-507.504705,0.0003985,14]
[334288794,1722901838763,-507.504705,0.0003985,14]
[334288795,1722901838772,-507.504705,0.0003985,14]
[334288796,1722901838782,-507.504705,0.0003985,14]
[334288797,1722901838791,-507.504705,0.0003985,14]
[334288798,1722901838800,-1405.619289,0.0003985,14]
[334288799,1722901838809,-1405.619289,0.0003985,14]
[334288800,1722901838819,-1405.619289,0.0003985,14]
[334288801,1722901838828,-1405.619289,0.0003985,14]
[334288802,1722901838837,-1405.619289,0.0003985,14]
[334288803,1722901838847,-1405.619289,0.0003985,14]
[334288804,1722901838856,-942.987619,0.0003985,14]
[334288805,1722901838865,-942.987619,0.0003985,14]
[334288806,1722901838874,-942.987619,0.0003985,14]
[334288807,1722901838883,-942.987619,0.0003985,14]
[334288808,1722901838892,-942.987619,0.0003985,14]
[334288809,1722901838901,-942.987619,0.0003985,14]
[334288810,1722901838910,-317.394168,0.0003985,14]
[334288811,1722901838919,-317.394168,0.0003985,14]
[334288812,1722901838929,-317.394168,0.0003985,14]
[334288813,1722901838938,-317.394168,0.0003985,14]
[334288814,1722901838947,-317.394168,0.0003985,14]
[334288815,1722901838957,-317.394168,0.0003985,14]
[334288816,1722901838966,-151.0,0.0003985,14]
[334288817,1722901838975,-151.0,0.0003985,14]
[334288818,1722901838985,-151.0,0.0003985,14]
[334288819,1722901838995,-151.0,0.0003985,14]
[334288820,1722901839004,-151.0,0.0003985,14]
[334288821,1722901839013,-151.0,0.0003985,14]
[334288822,1722901839023,-99793.75724696,0.0003985,120]
[334288823,1722901839032,-1458.667013,0.00039853,14]
[334288824,1722901839042,-1458.667013,0.00039853,14]
[334288825,1722901839051,-8299.36954871,0.00039853,5]
[334288826,1722901839061,-151.0,0.0003986,14]
[334288827,1722901839070,-151.0,0.0003986,14]
[334288828,1722901839079,-151.0,0.0003986,14]
[334288829,1722901839089,-151.0,0.0003986,14]